bitfinex-derivatives/quotes_SOLF0:USTF0_20250224
["timestamp","ask_amount","ask_price","bid_price","bid_amount"]
[1740430377525,6.62548392,151.99,151.96,2.11234354]
[1740430377721,0.04338392,151.99,151.96,2.11234354]
[1740430378525,6.62528392,151.99,151.96,2.11234354]
[1740430379127,0.04338392,151.99,151.96,2.11234354]
[1740430379529,6.62518392,151.99,151.96,2.11234354]
[1740430380226,0.04338392,151.99,151.96,0.04574354]
[1740430380725,26.2627,151.97,151.96,0.04574354]
[1740430380930,26.2627,151.97,151.96,4.354e-05]
[1740430385034,6.5824,151.98,151.96,4.354e-05]
[1740430385231,0.04338392,151.99,151.96,4.354e-05]
[1740430386337,0.04338392,151.99,151.97,6.5827]
[1740430386734,0.04338392,151.99,151.96,4.354e-05]
[1740430388436,6.62538392,151.99,151.96,6.58314354]
[1740430389032,6.5827,151.98,151.96,4.354e-05]
[1740430390032,6.62528392,151.99,151.96,4.354e-05]
[1740430390434,0.04338392,151.99,151.96,4.354e-05]
[1740430390738,6.5827,151.97,151.96,4.354e-05]
[1740430395639,26.2627,151.97,151.96,4.354e-05]
[1740430399143,6.5862,151.89,151.88,16.74300776]
[1740430399341,30.92,151.89,151.79,3.9844]
[1740430399541,11.24,151.89,151.79,3.9844]
[1740430399736,11.24,151.89,151.81,6.5895]
[1740430400344,0.04929488,151.87,151.83,0.04622803]
[1740430400940,19.72929488,151.87,151.83,0.04622803]
[1740430401541,6.5878,151.86,151.83,0.04622803]
[1740430402142,19.72929488,151.87,151.83,0.04622803]
[1740430402446,6.5876,151.86,151.83,0.04622803]
[1740430403348,19.68,151.81,151.68,70.6841315]
[1740430403548,19.68,151.79,151.7,5.7602]
[1740430403741,19.68,151.79,151.7,1.9981]
[1740430403947,21.5741,151.78,151.68,70.6841315]
[1740430404549,0.04616507,151.75,151.71,0.04357415]
[1740430404940,6.5935,151.72,151.71,0.04357415]
[1740430405147,30.92,151.72,151.68,70.6841315]
[1740430405343,1.9793,151.71,151.68,70.6841315]
[1740430405545,6.5948,151.69,151.68,70.6841315]
[1740430405946,6.5948,151.69,151.68,55.1385315]
[1740430406248,26.2748,151.69,151.68,33.5942315]
[1740430406445,6.5953,151.68,151.67,7.377e-05]
[1740430406640,19.68,151.68,151.67,7.377e-05]
[1740430406848,0.04552294,151.7,151.67,7.377e-05]
[1740430410246,1.31847847,151.69,151.67,7.377e-05]
[1740430410852,19.68,151.68,151.67,7.377e-05]
[1740430411747,30.92,151.68,151.67,7.377e-05]
[1740430412950,11.24,151.68,151.67,7.377e-05]
[1740430413857,30.92,151.68,151.67,7.377e-05]
[1740430416157,37.5153,151.68,151.67,7.377e-05]
[1740430416851,38.8338654,151.68,151.67,7.377e-05]
[1740430417254,40.04591166,151.68,151.67,7.377e-05]
[1740430417957,19.68,151.57,151.36,13.218]
[1740430418159,19.68,151.55,151.41,2.0662]
[1740430418353,19.68,151.55,151.51,6.6026]
[1740430418750,19.68,151.55,151.41,2.0662]
[1740430419150,0.04736582,151.5,151.46,0.04958888]
[1740430419353,0.04736582,151.5,151.46,6.65408888]
[1740430419558,0.04736582,151.5,151.46,0.04958888]
[1740430419758,19.68,151.55,151.46,0.04958888]
[1740430420157,11.24,151.56,151.46,0.04958888]
[1740430420450,30.92,151.56,151.55,6.6009]
[1740430420653,30.92,151.56,151.42,178.7037]
[1740430421060,0.04569934,151.51,151.47,0.0431026]
[1740430421256,11.24,151.56,151.47,0.0431026]
[1740430421652,30.92,151.56,151.47,0.0431026]
[1740430422451,0.04373329,151.53,151.47,0.0431026]
[1740430424759,19.68,151.51,151.47,0.0431026]
[1740430425156,1.21309252,151.5,151.38,4.0836]
[1740430425360,19.68,151.47,151.38,2.013]
[1740430425562,19.68,151.45,151.3,2.0424]
[1740430425763,19.68,151.45,151.34,6.61]
[1740430425957,19.68,151.45,151.3,3.972]
[1740430426166,1.21355857,151.44,151.3,3.972]
[1740430426360,19.72801669,151.41,151.38,0.04236163]
[1740430426567,1.21355857,151.4,151.22,5.9096]
[1740430426862,2.53464979,151.39,151.22,12.5249]
[1740430427060,32.15355857,151.38,151.22,12.5249]
[1740430427259,32.15355857,151.38,151.22,5.9096]
[1740430427260,1.21355857,151.37,151.22,5.9096]
[1740430427561,1.21355857,151.36,151.22,5.9096]
[1740430427861,0.04831388,151.31,151.28,0.04696611]
[1740430428061,11.26,151.36,151.28,0.04696611]
[1740430428768,19.68,151.34,151.28,0.04696611]
[1740430428962,1.21436568,151.33,151.28,0.04696611]
[1740430429162,19.68,151.34,151.28,0.04696611]
[1740430429366,0.04612648,151.32,151.28,0.04696611]
[1740430430168,11.26,151.31,151.28,0.04696611]
[1740430432267,0.04612648,151.32,151.28,0.04696611]
[1740430432463,183.96,151.35,151.28,6.65956611]
[1740430432766,183.96,151.35,151.28,0.04696611]
[1740430433564,0.04552596,151.33,151.28,0.04696611]
[1740430440478,0.04552596,151.33,151.28,6.65936611]
[1740430440775,0.04552596,151.33,151.29,1.9795]
[1740430440974,0.04552596,151.33,151.28,0.04696611]
[1740430443377,6.6087,151.38,151.29,6.612]
[1740430443685,11.26,151.37,151.3,4.0129]
[1740430444571,0.0422251,151.35,151.32,0.04262072]
[1740430445784,6.6105,151.33,151.32,0.04262072]
[1740430445984,19.68,151.33,151.07,229.93597404]
[1740430446183,19.68,151.31,151.12,6.6196]
[1740430446383,19.68,151.25,151.08,23.6286]
[1740430446578,19.68,151.29,151.08,202.3323]
[1740430446785,19.68,151.29,151.15,6.6181]
[1740430446977,19.68,151.29,151.08,202.3323]
[1740430446978,19.68,151.29,151.2,0.04969943]
[1740430447383,0.04842096,151.26,151.2,0.04969943]
[1740430447683,0.04842096,151.26,151.08,178.7037]
[1740430447878,0.04842096,151.26,151.09,3.9371]
[1740430447879,6.6173,151.18,151.09,3.9371]
[1740430448181,19.68,151.27,151.15,0.04988489]
[1740430448182,0.04548589,151.19,151.15,0.04988489]
[1740430448377,6.6174,151.18,151.15,0.04988489]
[1740430448577,11.26,151.2,151.1,3.9691]
[1740430448578,0.04385608,151.19,151.1,3.9691]
[1740430448782,11.26,151.2,151.15,0.04923362]
[1740430449083,0.0505561,151.16,151.15,0.04923362]
[1740430450183,11.26,151.2,151.15,0.04923362]
[1740430450381,11.28,151.26,151.15,0.04923362]
[1740430450578,11.28,151.26,151.17,6.6175]
[1740430450782,11.28,151.26,151.18,1.9483]
[1740430451178,30.96,151.26,151.1,180.6703]
[1740430451377,0.0505488,151.24,151.2,0.04273352]
[1740430451577,30.96,151.26,151.12,6.6193]
[1740430451783,6.6166,151.2,151.11,1.9483]
[1740430452078,19.68,151.25,151.17,0.04992809]
[1740430452485,0.05049276,151.23,151.17,0.04992809]
[1740430453290,19.73049276,151.23,151.17,2.809e-05]
[1740430453591,26.2971,151.18,151.17,2.809e-05]
[1740430453786,17.8971,151.18,151.17,2.809e-05]
[1740430453996,37.5771,151.18,151.17,2.809e-05]
[1740430454696,6.6225,151.06,150.94,178.7037]
[1740430454896,11.28,151.08,150.98,1.9071]
[1740430455394,11.28,151.08,150.99,2.061]
[1740430455991,0.04188129,151.05,151.02,0.0502765]
[1740430456800,11.28,151.12,151.02,0.0502765]
[1740430457000,11.28,151.15,151.02,0.0502765]
[1740430457193,11.28,151.15,150.99,180.7647]
[1740430457896,0.05075716,151.09,151.05,0.04795244]
[1740430458098,11.28,151.15,150.99,180.7647]
[1740430458402,6.6194,151.13,151.07,6.6219]
[1740430458597,11.28,151.15,150.99,198.5437]
[1740430459199,0.0469261,151.09,151.05,0.04354628]
[1740430459399,6.619,151.14,150.99,198.5437]
[1740430460397,0.02532268,151.08,151.05,0.0507505]
[1740430460599,30.96,151.18,150.99,178.7037]
[1740430460803,0.02532268,151.08,151.05,0.0451794]
[1740430460998,19.68,151.16,150.99,178.7037]
[1740430461200,0.02532268,151.08,151.07,6.6218]
[1740430461393,6.6196,151.13,150.99,178.7037]
[1740430461597,19.68,151.16,150.99,198.5437]
[1740430461798,30.96,151.2,150.99,198.5437]
[1740430462000,19.68,151.2,151.0,1.9679]
[1740430462501,6.6205,151.11,151.08,0.04442225]
[1740430462697,6.6205,151.11,151.0,1.9679]
[1740430462998,6.6189,151.14,151.08,0.04206018]
[1740430463198,19.68,151.2,151.04,0.04922999]
[1740430463405,19.68,151.2,151.01,1.9497]
[1740430463600,6.6194,151.13,151.1,0.04601252]
[1740430463800,6.6194,151.13,151.08,6.6212]
[1740430464002,19.68,151.2,151.1,0.04874559]
[1740430464205,19.68,151.2,151.09,3.8467]
[1740430464399,19.68,151.2,151.13,0.04682291]
[1740430464601,6.6188,151.14,151.13,0.04682291]
[1740430466903,1.9709,151.21,151.13,0.04682291]
[1740430467101,11.28,151.2,151.13,0.04682291]
[1740430468005,6.6168,151.19,151.15,6.6183]
[1740430468407,11.28,151.2,151.13,0.04682291]
[1740430468601,6.6178,151.17,151.13,0.04682291]
[1740430468801,11.28,151.2,151.13,0.04682291]
[1740430469203,11.28,151.25,151.13,0.04682291]
[1740430469402,173.06,151.26,151.1,2.0067]
[1740430469602,6.6152,151.23,151.19,6.6165]
[1740430469802,184.34,151.26,151.1,180.7104]
[1740430469803,184.34,151.26,151.18,4.0662]
[1740430470006,11.28,151.26,151.19,0.0474051]
[1740430470209,6.6143,151.25,151.21,6.6157]
[1740430471604,6.6146,151.24,151.2,6.6161]
[1740430472605,11.28,151.26,151.2,6.6161]
[1740430472811,6.6142,151.25,151.2,6.6161]
[1740430473212,11.28,151.26,151.2,6.6161]
[1740430473411,6.6141,151.25,151.2,6.6161]
[1740430473910,6.6141,151.25,151.21,6.6157]
[1740430474112,11.28,151.26,151.21,6.6157]
[1740430474411,17.8937,151.26,151.19,1.9754051]
[1740430474612,17.8937,151.26,151.22,6.6153]
[1740430474915,6.6137,151.26,151.22,6.66609811]
[1740430475208,30.96,151.31,151.22,0.05079811]
[1740430475415,6.6131,151.28,151.23,6.6148]
[1740430475713,6.6131,151.28,151.25,0.04533392]
[1740430476506,30.96,151.31,151.25,0.04533392]
[1740430476712,30.96,151.31,151.08,84.01617012]
[1740430477013,6.6176,151.17,151.14,1.961]
[1740430477814,6.66018115,151.17,151.14,2.01098398]
[1740430478211,0.04258115,151.17,151.14,2.01098398]
[1740430478606,11.28,151.21,151.14,2.01098398]
[1740430478812,11.28,151.21,151.19,6.6166]
[1740430479410,11.28,151.21,151.14,1.961]
[1740430479817,11.28,151.21,151.16,0.04678401]
[1740430480313,30.96,151.21,151.16,0.04678401]
[1740430480816,6.6175,151.17,151.16,0.04678401]
[1740430481514,6.6188,151.15,151.08,1.9717]
[1740430481712,0.2992,151.2,151.08,1.9717]
[1740430481908,0.2992,151.2,151.09,6.6206]
[1740430482117,6.6192,151.14,151.09,6.6206]
[1740430482821,0.0460602,151.13,151.1,0.04191741]
[1740430483914,6.6202,151.11,151.1,0.04191741]
[1740430488319,6.6657602,151.13,151.1,0.04191741]
[1740430488617,0.0460602,151.13,151.1,0.04191741]
[1740430488813,6.6179,151.17,151.1,0.04191741]
[1740430489015,11.28,151.18,151.1,0.04191741]
[1740430489415,17.8973,151.18,151.1,0.04191741]
[1740430489616,2.0058,151.26,151.1,0.04191741]
[1740430489815,13.2531,151.22,151.06,202.5775]
[1740430490020,13.2531,151.22,151.12,0.04417384]
[1740430490319,11.28,151.22,151.06,202.5775]
[1740430490520,11.28,151.22,151.15,0.04572852]
[1740430491218,31.13,151.22,151.15,0.04572852]
[1740430492211,11.28,151.22,151.15,0.04572852]
[1740430494113,31.13,151.22,151.15,0.04572852]
[1740430494319,6.618,151.16,151.15,0.04572852]
[1740430494620,0.3484,151.21,151.15,0.04572852]
[1740430494814,6.6172,151.18,151.15,0.04572852]
[1740430495123,31.13,151.22,151.15,0.04572852]
[1740430496421,11.28,151.22,151.15,0.04572852]
[1740430496828,6.6165,151.2,151.15,0.04572852]
[1740430497320,11.28,151.22,151.15,0.04572852]
[1740430497525,6.6165,151.2,151.15,0.04572852]
[1740430497916,11.28,151.22,151.15,0.04572852]
[1740430498319,11.28,151.22,151.15,6.66392852]
[1740430498914,11.28,151.22,151.15,0.04572852]
[1740430499522,6.6165,151.2,151.16,6.6177]
[1740430499722,11.28,151.22,151.15,0.04572852]
[1740430499918,20.1984,151.25,151.15,0.04572852]
[1740430500123,3.9299,151.26,151.08,19.84]
[1740430500316,13.2858,151.26,151.18,0.04238787]
[1740430500518,33.0783,151.25,151.08,178.7037]
[1740430500717,33.0783,151.25,151.06,4.0338]
[1740430500922,0.3473,151.24,151.06,4.0338]
[1740430501232,19.85,151.22,151.06,4.0338]
[1740430501425,1.9428,151.21,151.06,4.0338]
[1740430501629,1.9428,151.21,151.06,39.51548056]
[1740430501824,0.04586445,151.15,151.12,0.04347373]
[1740430502228,6.6193,151.13,151.12,0.04347373]
[1740430502829,0.04586445,151.15,151.12,0.04347373]
[1740430503327,6.6193,151.13,151.12,0.04347373]
[1740430503523,0.04586445,151.15,151.06,37.48858056]
[1740430503727,0.3473,151.15,151.06,35.48168056]
[1740430504031,19.85,151.13,151.06,35.48168056]
[1740430504221,1.9304,151.12,151.06,35.48168056]
[1740430504734,0.04495126,151.11,151.07,0.04663333]
[1740430505028,6.6213,151.09,151.07,0.04663333]
[1740430505428,0.04495126,151.11,151.08,6.6211]
[1740430506028,0.04495126,151.11,151.07,0.04663333]
[1740430507034,0.04495126,151.11,151.08,6.6214]
[1740430507227,0.04495126,151.11,151.07,0.04663333]
[1740430508132,0.04495126,151.11,151.08,6.6211]
[1740430508331,0.04495126,151.11,151.07,0.04663333]
[1740430511131,0.04495126,151.11,151.1,6.6206]
[1740430511331,0.04495126,151.11,151.08,6.0841]
[1740430512236,0.04495126,151.11,151.08,12.7055]
[1740430512434,33.0747,151.2,151.08,6.0841]
[1740430513029,21.7947,151.2,151.08,6.0841]
[1740430513427,6.6168,151.19,151.14,6.6185]
[1740430513633,6.6168,151.19,151.08,6.0841]
[1740430513634,0.04256189,151.16,151.12,0.04567366]
[1740430514035,0.04256189,151.16,151.14,6.6186]
[1740430514234,0.04256189,151.16,151.12,0.04567366]
[1740430514638,6.66076189,151.16,151.12,0.04567366]
[1740430515339,0.04256189,151.16,151.12,0.04567366]
[1740430516435,0.04256189,151.16,151.15,6.6184]
[1740430516635,0.04256189,151.16,151.12,0.04567366]
[1740430516636,11.28,151.26,151.12,0.04567366]
[1740430516838,11.28,151.26,151.09,1.07432966]
[1740430517036,17.894,151.26,151.2,6.616]
[1740430517636,6.6148,151.24,151.18,6.6168]
[1740430517941,31.13,151.26,151.21,0.04402605]
[1740430518242,6.6171,151.19,151.13,6.6191]
[1740430518535,31.13,151.26,151.14,0.04866871]
[1740430518733,31.13,151.26,151.08,24.03645456]
[1740430518734,6.6181,151.16,151.1,6.6205]
[1740430518939,31.13,151.18,151.08,6.0841]
[1740430519135,13.2283,151.25,151.16,25.30998056]
[1740430519136,33.1271,151.17,151.16,25.30998056]
[1740430519439,21.9621,151.17,151.16,7.21538056]
[1740430519834,15.3446,151.17,151.16,7.21538056]
[1740430520435,35.1946,151.17,151.16,7.21538056]
[1740430520730,31.13,151.17,151.16,7.21538056]
[1740430522137,11.28,151.17,151.15,0.04919849]
[1740430522342,19.85,151.21,151.15,0.04919849]
[1740430522842,19.85,151.18,151.15,0.04919849]
[1740430523943,19.85,151.21,151.15,0.04919849]
[1740430524942,11.28,151.22,151.15,0.04919849]
[1740430525143,19.85,151.25,151.15,0.04919849]
[1740430525343,11.28,151.24,151.09,1.07451295]
[1740430525543,31.13,151.24,151.18,0.04627438]
[1740430526341,11.28,151.24,151.18,0.04627438]
[1740430526540,19.85,151.29,151.18,0.04627438]
[1740430526738,19.85,151.29,151.24,6.6142]
[1740430526944,9.10558938,151.3,151.24,6.6142]
[1740430527446,9.10558938,151.3,151.25,0.04769734]
[1740430527646,35.56758938,151.3,151.25,0.04769734]
[1740430528146,26.4627,151.28,151.25,0.04769734]
[1740430528345,19.85,151.28,151.25,0.04769734]
[1740430528743,19.85,151.26,151.25,0.04769734]
[1740430529240,26.4636,151.26,151.25,0.04769734]
[1740430529947,11.28,151.27,151.25,0.04769734]
[1740430530346,11.28,151.3,151.25,0.04769734]
[1740430530540,6.6126,151.29,151.25,0.04769734]
[1740430530747,31.13,151.3,151.25,0.04769734]
[1740430531137,26.4636,151.26,151.25,0.04769734]
[1740430533347,26.4636,151.26,151.25,9.734e-05]
[1740430533951,37.7436,151.26,151.25,9.734e-05]
[1740430536051,6.6136,151.26,151.25,9.734e-05]
[1740430536745,17.94272503,151.27,151.25,9.734e-05]
[1740430536951,0.04942503,151.27,151.25,9.734e-05]
[1740430537752,6.6136,151.26,151.25,9.734e-05]
[1740430538050,0.04942503,151.27,151.25,9.734e-05]
[1740430538250,26.4636,151.26,151.25,9.734e-05]
[1740430540250,27.78582662,151.26,151.25,9.734e-05]
[1740430541157,29.00129588,151.26,151.25,9.734e-05]
[1740430541755,27.78582662,151.26,151.25,9.734e-05]
[1740430546256,29.00125254,151.26,151.25,9.734e-05]
[1740430546455,27.78582662,151.26,151.25,9.734e-05]
[1740430546657,29.00133228,151.26,151.25,9.734e-05]
[1740430547056,202.06133228,151.26,151.25,9.734e-05]
[1740430547549,200.84582662,151.26,151.25,9.734e-05]
[1740430550252,212.12582662,151.26,151.25,9.734e-05]
[1740430551654,200.84582662,151.26,151.25,9.734e-05]
[1740430551859,39.06582662,151.26,151.25,9.734e-05]
[1740430552651,19.21582662,151.26,151.25,9.734e-05]
[1740430552959,17.8936,151.26,151.25,9.734e-05]
[1740430554465,3.5002,151.26,151.25,9.734e-05]
[1740430554761,0.04942503,151.27,151.25,9.734e-05]
[1740430555162,6.6136,151.26,151.25,9.734e-05]
[1740430557760,26.4636,151.26,151.25,9.734e-05]
[1740430561264,0.04942503,151.27,151.25,9.734e-05]
[1740430562966,6.66212503,151.27,151.25,9.734e-05]
[1740430563666,0.04942503,151.27,151.25,9.734e-05]
[1740430563867,6.6129,151.26,151.25,9.734e-05]
[1740430564068,0.04942503,151.27,151.25,9.734e-05]
[1740430564968,6.6129,151.26,151.25,9.734e-05]
[1740430565560,26.4629,151.26,151.25,9.734e-05]
[1740430567170,30.3483,151.26,151.25,9.734e-05]
[1740430567366,31.67052662,151.26,151.25,9.734e-05]
[1740430569168,32.88592,151.26,151.25,9.734e-05]
[1740430569769,19.85,151.14,151.12,45.03599293]
[1740430569968,33.0272,151.13,151.12,12.89569293]
[1740430570274,6.6221,151.06,151.03,12.89569293]
[1740430570773,0.04411699,151.06,151.03,12.94642778]
[1740430572777,11.28,151.05,151.03,12.94642778]
[1740430573877,11.28,151.05,151.03,0.05073485]
[1740430578073,11.28,151.04,151.03,0.05073485]
[1740430578277,1.9284,151.04,151.03,0.05073485]
[1740430578481,0.04411699,151.06,151.03,0.05073485]
[1740430578482,11.32411699,151.06,151.03,0.05073485]
[1740430580278,31.17411699,151.06,151.03,0.05073485]
[1740430581082,0.04411699,151.06,151.03,0.05073485]
[1740430581275,11.32411699,151.06,151.03,0.05073485]
[1740430581480,19.85,151.13,151.03,0.05073485]
[1740430581675,31.13,151.12,150.97,5.9085]
[1740430582074,11.28,151.12,150.97,5.9085]
[1740430582273,19.85,151.15,150.97,25.7485]
[1740430582484,11.28,151.13,151.03,0.04814674]
[1740430582788,11.28,151.13,150.97,204.4522]
[1740430582984,11.28,151.13,151.06,0.04583505]
[1740430584084,11.28,151.15,151.06,0.04583505]
[1740430584290,19.85,151.18,151.09,6.6203]
[1740430584488,11.28,151.17,151.1,3.9832]
[1740430584888,11.28,151.17,151.12,0.04173661]
[1740430585087,31.13,151.17,151.12,0.04173661]
[1740430585590,19.85,151.14,151.12,0.04173661]
[1740430586188,31.13,151.17,151.12,0.04173661]
[1740430587701,11.28,151.16,151.12,0.04173661]
[1740430587900,31.13,151.16,151.12,0.04173661]
[1740430588897,19.85,151.14,151.12,0.04173661]
[1740430589996,19.85,151.15,151.12,0.04173661]
[1740430590493,31.13,151.16,151.12,0.04173661]
[1740430591699,19.85,151.16,151.12,0.04173661]
[1740430591899,11.28,151.16,151.12,0.04173661]
[1740430592696,19.85,151.2,151.12,0.04173661]
[1740430592900,11.28,151.2,151.12,0.04173661]
[1740430593395,11.28,151.2,151.13,6.6183]
[1740430593903,11.28,151.22,151.15,6.6177]
[1740430594198,1.878,151.29,151.17,0.04816306]
[1740430594401,12.60222662,151.26,151.16,5.9096]
[1740430594601,12.60222662,151.26,151.2,0.04520335]
[1740430594801,19.85,151.25,151.2,0.04520335]
[1740430595105,26.4635,151.25,151.2,0.04520335]
[1740430595502,19.85,151.25,151.2,0.04520335]
[1740430596196,26.4643,151.23,151.2,0.04520335]
[1740430597098,37.7243,151.23,151.2,0.04520335]
[1740430598501,26.4651,151.21,151.2,0.04520335]
[1740430598707,19.85,151.21,151.0,19.84]
[1740430598999,6.619,151.13,151.09,2.0268]
[1740430599207,31.11,151.13,151.09,2.0268]
[1740430599905,31.15502364,151.13,151.09,2.07445145]
[1740430600304,31.15502364,151.13,151.09,0.04765145]
[1740430600901,6.6199,151.1,151.09,0.04765145]
[1740430601805,6.6196,151.11,151.09,0.04765145]
[1740430602909,6.6199,151.1,151.09,0.04765145]
[1740430603103,26.4699,151.1,151.09,0.04765145]
[1740430604201,19.85,151.1,151.01,1.9279]
[1740430604402,6.6222,151.05,151.01,1.9279]
[1740430604908,6.6227,151.04,151.01,1.9279]
[1740430605407,6.6650348,151.04,151.01,1.97360113]
[1740430607204,6.623,151.03,151.01,1.97360113]
[1740430608806,6.6234,151.02,151.01,1.97360113]
[1740430609706,6.6234,151.02,151.01,0.04570113]
[1740430618408,6.6234,151.02,151.01,1.13e-06]
[1740430623516,0.0423348,151.04,151.01,1.13e-06]
[1740430624115,6.6234,151.02,151.01,1.13e-06]
[1740430624516,26.4734,151.02,151.01,1.13e-06]
[1740430624718,6.6261,150.96,150.95,1.13e-06]
[1740430624914,17.9061,150.96,150.95,1.13e-06]
[1740430625614,6.6261,150.96,150.95,1.13e-06]
[1740430625818,0.04686839,150.97,150.95,1.13e-06]
[1740430626118,11.28,151.0,150.95,1.13e-06]
[1740430626321,6.6261,150.96,150.95,1.13e-06]
[1740430627119,0.04877394,150.98,150.95,1.13e-06]
[1740430627818,11.28,151.03,150.95,1.13e-06]
[1740430628019,19.85,151.06,150.95,1.97670113]
[1740430628220,11.28,151.05,150.96,2.0184]
[1740430629114,0.04930291,151.02,150.99,0.04429143]
[1740430629319,6.6243,151.01,150.99,0.04429143]
[1740430629920,0.04930291,151.02,150.99,0.04429143]
[1740430630818,6.6243,151.0,150.99,0.04429143]
[1740430632324,6.6243,151.0,150.99,9.143e-05]
[1740430635022,6.624,151.01,150.99,9.143e-05]
[1740430635424,0.04930291,151.02,150.99,9.143e-05]
[1740430635624,6.6243,151.0,150.99,9.143e-05]
[1740430639122,26.4743,151.0,150.99,9.143e-05]
[1740430639720,6.6243,151.0,150.99,9.143e-05]
[1740430642121,26.4743,151.0,150.99,9.143e-05]
[1740430643128,26.4792,150.89,150.88,87.29440318]
[1740430643330,37.7592,150.89,150.88,36.73280318]
[1740430643525,31.13,150.89,150.88,23.10160318]
[1740430645028,31.13,150.89,150.87,0.04889622]
[1740430645333,225.13,150.89,150.87,0.04889622]
[1740430645830,26.4796,150.88,150.87,0.04889622]
[1740430646229,27.69785326,150.88,150.87,0.04889622]
[1740430646530,27.69783651,150.88,150.87,0.04889622]
[1740430646730,27.69783651,150.88,150.87,9.622e-05]
[1740430647428,26.4796,150.88,150.87,9.622e-05]
[1740430647732,27.69796645,150.88,150.87,9.622e-05]
[1740430648037,21.06836645,150.88,150.87,9.622e-05]
[1740430648232,19.85,150.88,150.87,9.622e-05]
[1740430648526,27.69776868,150.88,150.87,9.622e-05]
[1740430650523,6.6309,150.86,150.73,6.6362]
[1740430650730,6.6309,150.86,150.6,18.2968641]
[1740430650924,213.85,150.87,150.75,6.6352]
[1740430651428,213.85,150.87,150.6,19.84]
[1740430651634,213.85,150.87,150.74,6.6356]
[1740430651834,0.05001651,150.81,150.77,0.05070427]
[1740430652036,11.33001651,150.81,150.74,6.6356]
[1740430652235,11.33001651,150.81,150.59,11.28]
[1740430652432,11.28,150.81,150.77,0.04931591]
[1740430652636,0.04197046,150.78,150.77,0.04931591]
[1740430655336,19.89197046,150.78,150.77,0.04931591]
[1740430656031,26.52597046,150.78,150.77,0.04931591]
[1740430657839,31.17197046,150.78,150.77,0.04931591]
[1740430658340,19.89197046,150.78,150.77,0.04931591]
[1740430658536,31.17197046,150.78,150.77,0.04931591]
[1740430662555,31.13,150.82,150.77,0.04931591]
[1740430663548,0.04808461,150.81,150.77,0.04931591]
[1740430664141,0.04808461,150.81,150.77,6.68371591]
[1740430664442,31.13,150.82,150.77,0.04931591]
[1740430664642,31.13,150.82,150.77,6.68371591]
[1740430665045,11.28,150.83,150.78,6.6337]
[1740430665441,0.04884981,150.82,150.78,6.6337]
[1740430665641,173.52,150.86,150.79,6.6331]
[1740430665846,173.52,150.86,150.77,0.04931591]
[1740430665847,11.28,150.84,150.8,2.0212]
[1740430666147,6.6321,150.83,150.8,2.0212]
[1740430666448,31.13,150.84,150.8,2.0212]
[1740430666743,37.81082108,150.84,150.8,2.0637885]
[1740430667149,31.17942108,150.84,150.8,2.0637885]
[1740430668245,37.81102108,150.84,150.8,2.0637885]
[1740430669055,11.32942108,150.84,150.8,2.0637885]
[1740430669246,31.17942108,150.84,150.8,2.0637885]
[1740430669652,19.85,150.83,150.8,2.0637885]
[1740430669851,11.32942108,150.84,150.8,2.0637885]
[1740430670353,0.04942108,150.84,150.8,2.0637885]
[1740430671054,0.04942108,150.84,150.81,1.8913]
[1740430671652,6.6322,150.82,150.81,1.8913]
[1740430671845,0.04942108,150.84,150.8,0.0425885]
[1740430672152,6.6327,150.81,150.8,0.0425885]
[1740430672350,26.4827,150.81,150.8,0.0425885]
[1740430672555,26.4827,150.81,150.8,8.85e-05]
[1740430673248,27.70136873,150.81,150.8,8.85e-05]
[1740430673547,29.02754073,150.81,150.8,8.85e-05]
[1740430675149,27.808872,150.81,150.8,8.85e-05]
[1740430675956,6.6352,150.76,150.69,3.8162]
[1740430676255,6.6352,150.76,150.7,6.6372]
[1740430676855,67.60103158,150.81,150.69,3.8162]
[1740430677054,1.326172,150.81,150.69,3.8162]
[1740430677254,0.04801675,150.77,150.73,0.0486036]
[1740430677459,6.68281675,150.77,150.73,0.0486036]
[1740430677862,0.04801675,150.77,150.73,0.0486036]
[1740430678057,6.6349,150.76,150.73,0.0486036]
[1740430678264,3.5154,150.76,150.73,0.0486036]
[1740430679164,6.6357,150.74,150.73,0.0486036]
[1740430679962,6.6354,150.75,150.73,0.0486036]